bitfinex/quotes_SOLUSD_20220212
["timestamp","ask_amount","ask_price","bid_price","bid_amount"]
[1644693351679,1.43142206,98.463,98.411,5.079]
[1644693351875,1.43142206,98.466,98.411,2.62390296]
[1644693352074,1.43142206,98.468,98.412,7.70290296]
[1644693352274,1.43142206,98.472,98.415,43.61098425]
[1644693352477,1.43142206,98.475,98.415,43.61098425]
[1644693352677,1.43142206,98.476,98.416,7.70190296]
[1644693352977,1.43142206,98.477,98.42,15.2382]
[1644693353175,1.43142206,98.477,98.421,5.078]
[1644693353777,24.93262206,98.482,98.421,5.078]
[1644693354580,23.5012,98.482,98.421,5.078]
[1644693354780,23.5012,98.482,98.43,15.2375]
[1644693354978,23.5012,98.482,98.432,101.6]
[1644693355279,1.46234943,98.492,98.432,101.6]
[1644693355482,0.03092737,98.499,98.434,101.6]
[1644693355679,1.43142206,98.502,98.434,101.6]
[1644693355882,1.43142206,98.509,98.435,2.62390296]
[1644693356079,1.43142206,98.516,98.44,14.63]
[1644693356280,0.03092737,98.508,98.44,14.63]
[1644693356484,0.03092737,98.515,98.441,2.62390296]
[1644693356682,0.03092737,98.514,98.46,15.2329]
[1644693356881,0.03092737,98.514,98.461,64.75561089]
[1644693357081,1.43142206,98.52,98.461,64.75561089]
[1644693357284,1.43142206,98.52,98.461,24.768]
[1644693357481,1.43142206,98.515,98.434,101.6]
[1644693357681,1.43142206,98.505,98.435,24.3926]
[1644693357884,1.43142206,98.502,98.435,24.3926]
[1644693358083,1.43142206,98.501,98.421,5.077]
[1644693358284,1.43142206,98.495,98.422,61.08786411]
[1644693358484,1.43142206,98.495,98.423,101.6]
[1644693358683,7.70190296,98.494,98.423,101.6]
[1644693359086,5.078,98.494,98.423,101.6]
[1644693359287,6.50942206,98.494,98.423,101.6]
[1644693359686,1.43142206,98.493,98.423,101.6]
[1644693359884,6.50942206,98.492,98.423,101.6]
[1644693360086,23.0276,98.491,98.423,101.6]
[1644693360308,5.078,98.49,98.423,101.6]
[1644693361885,6.50942206,98.49,98.423,101.6]
[1644693362286,1.43142206,98.488,98.422,61.08786411]
[1644693362487,1.43142206,98.487,98.422,61.08786411]
[1644693362893,5.078,98.49,98.422,61.08786411]
[1644693362894,1.43142206,98.486,98.422,61.08786411]
[1644693363086,37.03694893,98.485,98.423,5.078]
[1644693363688,37.03694893,98.485,98.423,106.678]
[1644693364087,37.03694893,98.485,98.43,15.2377]
[1644693364487,37.03694893,98.485,98.431,101.6]
[1644693364890,5.078,98.49,98.431,101.6]
[1644693365089,24.45902206,98.491,98.431,101.6]
[1644693365789,1.43142206,98.49,98.432,5.078]
[1644693365993,42.30742045,98.49,98.43,15.2377]
[1644693366192,5.078,98.489,98.431,5.078]
[1644693366394,5.078,98.489,98.36,182.93]
[1644693366395,1.43142206,98.484,98.388,5.078]
[1644693366590,16.06142206,98.47,98.382,5.102]
[1644693366795,1.43142206,98.466,98.381,5.103]
[1644693366992,1.43142206,98.459,98.352,5.104]
[1644693367190,1.43142206,98.456,98.353,47.90505103]
[1644693367390,1.43142206,98.456,98.354,5.105]
[1644693367590,6.54334943,98.455,98.355,0.024]
[1644693367812,29.06032737,98.457,98.371,36.80055552]
[1644693367990,0.03092737,98.454,98.372,28.1141]
[1644693368192,0.03092737,98.456,98.373,0.024]
[1644693368390,0.03092737,98.453,98.374,5.08]
[1644693368591,0.03092737,98.455,98.375,0.024]
[1644693368792,0.03092737,98.452,98.375,0.024]
[1644693368992,0.03092737,98.454,98.38,15.2458]
[1644693369192,0.03092737,98.451,98.381,0.024]
[1644693369393,5.08,98.45,98.38,15.2458]
[1644693369890,5.11092737,98.452,98.381,0.25]
[1644693370094,5.11092737,98.456,98.381,0.25]
[1644693370301,5.11092737,98.456,98.381,0.024]
[1644693370302,0.03092737,98.455,98.381,0.024]
[1644693370495,14.63,98.45,98.382,0.024]
[1644693370793,14.63,98.45,98.372,0.274]
[1644693370995,5.11092737,98.449,98.373,0.024]
[1644693371798,5.11092737,98.449,98.372,0.024]
[1644693373198,5.11092737,98.449,98.373,5.08]
[1644693373396,5.11092737,98.449,98.374,0.024]
[1644693373598,20.24472737,98.449,98.374,0.024]
[1644693381517,15.2507,98.44,98.374,0.024]
[1644693381715,15.2507,98.44,98.372,0.25]
[1644693381716,5.08,98.439,98.372,0.25]
[1644693381916,28.7935,98.439,98.357,0.024]
[1644693382118,28.7935,98.439,98.358,5.081]
[1644693382317,28.7935,98.439,98.359,0.024]
[1644693382715,28.7935,98.439,98.36,5.105]
[1644693382932,28.7935,98.439,98.36,0.024]
[1644693383133,28.7935,98.439,98.361,5.105]
[1644693383433,28.7935,98.439,98.362,0.25]
[1644693383634,28.7935,98.439,98.363,5.081]
[1644693383833,28.7935,98.439,98.364,23.2471]
[1644693384035,28.7935,98.439,98.365,5.081]
[1644693384235,28.7935,98.439,98.365,5.105]
[1644693384439,28.7935,98.439,98.366,0.024]
[1644693386637,15.2521,98.43,98.366,0.024]
[1644693386836,15.2521,98.43,98.365,5.081]
[1644693386837,5.081,98.429,98.365,5.081]
[1644693387036,22.9481,98.428,98.365,5.081]
[1644693387236,5.081,98.427,98.365,5.081]
[1644693387635,39.5675156,98.426,98.365,5.081]
[1644693387837,5.081,98.425,98.365,5.081]
[1644693388037,14.63,98.42,98.365,5.081]
[1644693388236,5.081,98.419,98.365,5.081]
[1644693389440,5.081,98.419,98.353,0.024]
[1644693389637,15.651,98.419,98.353,0.25]
[1644693389839,15.2553,98.41,98.353,0.25]
[1644693390040,5.082,98.409,98.353,0.25]
[1644693390239,5.082,98.409,98.336,0.024]
[1644693390440,24.4564,98.408,98.336,37.19373385]
[1644693390637,5.082,98.407,98.337,0.024]
[1644693390838,5.082,98.407,98.336,37.19373385]
[1644693391041,24.4564,98.408,98.337,5.082]
[1644693391242,24.4564,98.408,98.337,5.106]
[1644693391640,24.4564,98.408,98.338,24.3561]
[1644693391842,5.082,98.407,98.338,24.3561]
[1644693392041,24.4564,98.408,98.339,5.082]
[1644693392242,15.2569,98.4,98.339,5.082]
[1644693392441,15.2569,98.4,98.321,24.1061]
[1644693392442,5.082,98.399,98.321,24.1061]
[1644693392647,7.70590296,98.399,98.322,0.274]
[1644693392842,7.70590296,98.399,98.323,0.024]
[1644693393043,2.62390296,98.398,98.323,0.024]
[1644693393244,36.56933602,98.396,98.323,0.024]
[1644693393544,15.2585,98.39,98.323,0.024]
[1644693393749,5.083,98.389,98.3,5.107]
[1644693393943,29.6695,98.389,98.301,0.024]
[1644693394346,24.5865,98.389,98.302,5.083]
[1644693394546,5.083,98.388,98.303,24.0606]
[1644693394848,15.2599,98.38,98.304,5.083]
[1644693395047,5.083,98.379,98.304,5.107]
[1644693395353,24.9839,98.378,98.305,0.024]
[1644693395547,5.083,98.377,98.305,0.024]
[1644693395748,5.083,98.377,98.305,0.25]
[1644693395949,5.083,98.377,98.305,0.274]
[1644693396948,24.9839,98.378,98.305,0.274]
[1644693397150,24.9839,98.378,98.306,5.083]
[1644693400652,24.9839,98.378,98.305,0.274]
[1644693400653,15.2619,98.37,98.305,0.274]
[1644693400856,15.2619,98.37,98.305,0.25]
[1644693401654,15.2637,98.36,98.305,0.25]
[1644693401853,22.7211,98.359,98.305,0.25]
[1644693402056,27.8041,98.359,98.305,0.25]
[1644693402259,40.26358255,98.358,98.279,0.024]
[1644693402458,45.34658255,98.358,98.28,5.083]
[1644693402658,45.34658255,98.358,98.281,0.024]
[1644693403064,45.34658255,98.358,98.278,5.109]
[1644693404967,15.2651,98.35,98.278,5.109]
[1644693405170,5.085,98.349,98.278,5.109]
[1644693405571,24.7932,98.348,98.278,5.109]
[1644693405770,5.085,98.347,98.278,5.085]
[1644693406772,5.085,98.347,98.279,0.25]
[1644693406973,5.085,98.347,98.277,23.9101]
[1644693407272,5.085,98.347,98.277,23.8861]
[1644693410684,5.085,98.347,98.278,0.25]
[1644693412081,5.085,98.347,98.277,23.9101]
[1644693412282,5.085,98.347,98.278,5.085]
[1644693413481,24.7932,98.348,98.279,0.25]
[1644693413684,24.7932,98.348,98.28,5.085]
[1644693414982,5.085,98.359,98.28,5.085]
[1644693415184,23.3619,98.369,98.281,2.64790296]
[1644693415481,28.5523,98.387,98.282,26.94390296]
[1644693415682,23.4673,98.387,98.283,101.624]
[1644693415884,36.97484799,98.386,98.284,5.107]
[1644693416083,42.05784799,98.386,98.285,101.6]
[1644693416284,42.05784799,98.386,98.287,101.6]
[1644693416688,42.05784799,98.386,98.288,7.73090296]
[1644693416891,36.97484799,98.386,98.29,15.2585]
[1644693417089,5.083,98.385,98.291,0.024]
[1644693417488,128.34370296,98.384,98.291,0.024]
[1644693417688,5.083,98.383,98.292,5.083]
[1644693417888,5.083,98.383,98.293,0.024]
[1644693418088,14.63,98.38,98.293,0.024]
[1644693418289,14.63,98.38,98.294,5.083]
[1644693418491,14.63,98.38,98.295,0.024]
[1644693418492,5.083,98.379,98.295,0.024]
[1644693418689,15.262,98.37,98.296,0.024]
[1644693418893,5.083,98.369,98.296,0.024]
[1644693419089,23.5705,98.368,98.291,0.024]
[1644693419290,5.083,98.367,98.291,0.024]
[1644693421691,5.083,98.367,98.292,5.083]
[1644693421892,5.083,98.367,98.293,0.024]
[1644693422289,5.083,98.367,98.29,5.107]
[1644693423595,5.083,98.367,98.29,0.024]
[1644693424292,5.083,98.367,98.29,0.274]
[1644693430413,23.5705,98.368,98.29,5.357]
[1644693432910,5.083,98.367,98.29,5.357]
[1644693433210,5.083,98.367,98.291,5.083]
[1644693433409,5.083,98.367,98.292,0.024]
[1644693433911,5.083,98.367,98.293,5.083]
[1644693434110,5.083,98.367,98.294,0.024]
[1644693434310,5.083,98.367,98.291,0.024]
[1644693434509,5.083,98.367,98.292,5.107]
[1644693434711,5.083,98.367,98.293,0.274]
[1644693434914,5.083,98.367,98.294,5.083]
[1644693435110,5.083,98.367,98.295,0.024]
[1644693435309,5.083,98.367,98.293,0.25]
[1644693435310,23.5705,98.368,98.294,5.107]
[1644693435609,4.68583323,98.367,98.295,0.024]
[1644693437114,4.68583323,98.367,98.296,5.083]
[1644693437615,4.68583323,98.367,98.294,5.107]
[1644693437815,4.68583323,98.367,98.295,0.024]
[1644693438113,5.083,98.366,98.296,5.083]
[1644693438313,4.68583323,98.365,98.296,5.083]
[1644693438513,5.083,98.364,98.294,5.107]
[1644693438717,5.083,98.364,98.294,5.083]
[1644693438915,5.083,98.367,98.294,5.083]
[1644693439115,4.68752441,98.366,98.295,0.024]
[1644693439316,5.083,98.365,98.296,5.083]
[1644693439615,5.083,98.365,98.295,5.107]
[1644693439915,5.083,98.367,98.294,5.107]
[1644693440114,4.68803606,98.366,98.294,5.083]
[1644693440315,5.083,98.365,98.295,0.024]
[1644693440516,5.083,98.365,98.296,5.083]
[1644693440714,4.68872787,98.364,98.296,5.083]
[1644693440917,5.083,98.363,98.296,5.083]
[1644693441115,5.083,98.366,98.296,5.083]
[1644693441319,23.5705,98.368,98.297,101.6]
[1644693441519,23.5705,98.368,98.297,0.024]
[1644693441920,7.93969215,98.385,98.297,0.024]
[1644693442118,28.66344429,98.384,98.296,5.083]
[1644693442318,5.083,98.383,98.297,0.024]
[1644693442516,4.69214429,98.383,98.297,0.024]
[1644693442717,4.69214429,98.382,98.297,0.024]
[1644693442918,4.69214429,98.383,98.298,5.083]
[1644693443320,5.083,98.382,98.299,0.024]
[1644693443520,4.69214429,98.381,98.295,0.024]
[1644693443821,15.2604,98.38,98.296,5.107]
[1644693444021,20.3434,98.38,98.294,0.024]
[1644693444218,4.69214429,98.379,98.294,5.107]
[1644693444519,9.77514429,98.379,98.295,0.024]
[1644693444720,4.69214429,98.378,98.296,0.024]
[1644693444919,5.083,98.377,98.296,0.024]
[1644693445120,5.083,98.377,98.294,0.024]
[1644693445323,4.69214429,98.376,98.294,0.024]
[1644693445723,5.083,98.375,98.294,0.024]
[1644693445928,5.083,98.378,98.294,0.024]
[1644693446123,4.69481736,98.377,98.295,5.083]
[1644693446327,4.69481736,98.379,98.296,0.024]
[1644693446525,9.77781736,98.379,98.296,0.024]
[1644693446723,9.77781736,98.379,98.297,5.107]
[1644693446724,4.69481736,98.378,98.297,5.107]
[1644693446924,29.8921,98.37,98.297,0.024]
[1644693447127,34.29951736,98.369,98.298,0.024]
[1644693447324,4.69481736,98.368,98.29,0.024]
[1644693447625,5.083,98.367,98.29,0.024]
[1644693447825,4.69481736,98.366,98.291,5.083]
[1644693448027,4.69481736,98.368,98.292,0.024]
[1644693448225,4.69481736,98.368,98.292,0.274]
[1644693448425,4.69481736,98.368,98.292,0.25]
[1644693448625,4.69481736,98.368,98.293,0.024]
[1644693449026,7.55150951,98.368,98.293,0.024]
[1644693449225,7.55150951,98.368,98.226,73.8754]
[1644693449226,2.85669215,98.355,98.291,0.024]
[1644693449428,14.63,98.35,98.283,0.024]
[1644693449626,2.85669215,98.342,98.272,0.024]
[1644693449827,2.85669215,98.342,98.252,0.024]
[1644693449828,7.94269215,98.341,98.252,0.024]
[1644693450027,14.63,98.33,98.252,0.024]
[1644693450227,101.6,98.328,98.252,0.024]
[1644693450426,5.086,98.327,98.252,0.274]
[1644693450627,5.086,98.328,98.253,0.024]
[1644693450827,23.281,98.329,98.253,0.024]
[1644693451927,101.6,98.328,98.253,0.024]
[1644693452729,15.2699,98.32,98.253,0.024]
[1644693452929,101.6,98.318,98.252,0.25]
[1644693453134,5.087,98.317,98.252,0.25]
[1644693453335,29.3191,98.317,98.252,0.25]
[1644693453534,24.2321,98.317,98.252,0.25]
[1644693454435,39.1276,98.317,98.252,0.25]
[1644693454635,5.087,98.316,98.252,0.25]
[1644693454835,39.1276,98.317,98.252,0.25]
[1644693456038,34.87192847,98.309,98.252,0.25]
[1644693456335,101.6,98.308,98.252,0.25]
[1644693456540,5.087,98.307,98.252,0.25]
[1644693456736,101.6,98.306,98.252,0.25]
[1644693457236,5.087,98.305,98.252,0.25]
[1644693458356,101.6,98.304,98.252,0.25]
[1644693458757,5.087,98.303,98.252,0.25]
[1644693459260,22.9637,98.303,98.252,0.25]
[1644693459460,5.087,98.302,98.252,0.25]
[1644693462662,22.9637,98.303,98.252,0.25]
[1644693462863,5.087,98.302,98.252,0.25]
[1644693463064,15.2732,98.3,98.238,0.024]
[1644693463262,29.9032,98.3,98.231,0.024]
[1644693463465,5.088,98.299,98.231,5.088]
[1644693464764,5.088,98.299,98.23,24.9094]
[1644693464964,14.63,98.3,98.23,24.9094]
[1644693465166,28.0517,98.303,98.231,5.088]
[1644693465167,22.9637,98.303,98.231,5.088]
[1644693465464,22.9637,98.303,98.232,45.28724582]
[1644693465668,22.9637,98.303,98.233,5.088]
[1644693465866,5.088,98.308,98.234,101.85]
[1644693466068,34.87192847,98.309,98.234,101.874]
[1644693466267,34.87192847,98.309,98.24,15.2673]
[1644693466869,14.63,98.33,98.24,15.2673]
[1644693467069,14.63,98.33,98.241,0.024]
[1644693467269,5.087,98.329,98.241,0.024]
[1644693467874,46.05271213,98.328,98.241,0.024]
[1644693468069,5.087,98.327,98.241,0.024]
[1644693468269,23.0749,98.326,98.241,0.024]
[1644693468472,23.0749,98.326,98.25,15.266]
[1644693468673,23.0749,98.326,98.251,101.6]
[1644693468872,46.05271213,98.328,98.253,101.6]
[1644693469072,46.05271213,98.328,98.254,5.11]
[1644693469275,46.05271213,98.328,98.255,101.6]
[1644693469474,46.05271213,98.328,98.256,0.024]
[1644693470174,5.086,98.348,98.26,15.264]
[1644693470379,5.086,98.369,98.261,0.024]
[1644693470576,2.85669215,98.379,98.261,7.73290296]
[1644693470775,2.85669215,98.379,98.27,14.63]
[1644693470976,25.37389215,98.393,98.271,46.9715]
[1644693471174,48.73988733,98.392,98.272,137.27457629]
[1644693471378,4.68341628,98.391,98.272,137.29857629]
[1644693471579,5.083,98.39,98.272,139.92247925]
[1644693471787,5.083,98.39,98.29,15.2589]
[1644693471984,4.68784276,98.389,98.292,101.6]
[1644693472185,5.083,98.388,98.293,0.024]
[1644693472385,4.68784276,98.387,98.293,0.024]
[1644693472586,5.083,98.387,98.292,0.024]
[1644693472786,4.68784276,98.386,98.292,0.024]
[1644693472990,4.68784276,98.386,98.292,101.624]
[1644693473186,4.68784276,98.388,98.293,0.024]
[1644693473386,9.76995403,98.387,98.293,0.024]
[1644693473686,4.68695403,98.386,98.293,0.024]
[1644693474085,5.083,98.385,98.293,0.024]
[1644693474289,5.083,98.39,98.293,0.024]
[1644693474485,4.68835086,98.389,98.293,0.024]
[1644693474685,5.083,98.388,98.293,0.024]
[1644693474884,4.68835086,98.387,98.294,5.083]
[1644693475088,4.68835086,98.389,98.295,0.024]
[1644693475287,5.083,98.386,98.295,0.024]
[1644693475489,5.083,98.388,98.296,5.083]
[1644693475691,48.73988733,98.392,98.297,0.024]
[1644693475692,5.083,98.385,98.297,0.024]
[1644693475890,9.77251035,98.387,98.297,0.024]
[1644693476091,14.63,98.38,98.292,0.024]
[1644693476291,101.6,98.378,98.292,0.024]
[1644693476714,4.68951035,98.377,98.292,0.024]
[1644693476917,101.6,98.375,98.292,0.024]
[1644693477115,111.37251035,98.374,98.292,0.024]
[1644693477312,25.76579215,98.379,98.292,0.024]
[1644693477313,14.63,98.37,98.292,0.024]
[1644693477913,29.8929,98.37,98.292,5.107]
[1644693478314,29.8929,98.37,98.293,0.024]
[1644693479219,5.083,98.369,98.293,0.024]
[1644693479419,5.083,98.369,98.291,24.8418]
[1644693479420,5.083,98.369,98.292,0.024]
[1644693481116,5.083,98.369,98.293,2.62390296]
[1644693481321,22.9091,98.379,98.294,0.024]
[1644693481717,5.083,98.391,98.295,2.62390296]
[1644693481920,5.083,98.391,98.296,0.024]
[1644693482316,5.083,98.391,98.297,2.62390296]
[1644693482719,5.083,98.391,98.298,0.024]
[1644693482919,5.083,98.391,98.3,15.2578]
[1644693483120,24.3157,98.39,98.301,0.024]
[1644693483422,24.3157,98.39,98.302,34.31340161]
[1644693483621,24.3157,98.39,98.303,5.083]
[1644693483622,5.083,98.389,98.303,5.083]
[1644693484223,5.083,98.389,98.304,23.3733]
[1644693484426,24.3157,98.39,98.305,5.083]
[1644693487528,39.5751,98.39,98.305,5.083]
[1644693487929,1.42601817,98.375,98.305,5.083]
[1644693488129,1.42601817,98.376,98.305,5.083]
[1644693488731,1.42601817,98.376,98.306,0.25]
[1644693488933,5.083,98.375,98.306,0.25]
[1644693489534,6.50901817,98.375,98.306,0.25]
[1644693489733,1.42601817,98.375,98.306,0.25]
[1644693490134,1.42601817,98.374,98.306,0.25]
[1644693490333,6.50901817,98.373,98.306,0.25]
[1644693490534,1.42601817,98.373,98.307,5.083]
[1644693490833,1.42601817,98.372,98.307,5.083]
[1644693491236,1.42601817,98.371,98.307,5.083]
[1644693491936,1.42601817,98.37,98.307,5.083]
[1644693492435,1.42601817,98.371,98.307,5.083]
[1644693492634,1.42601817,98.371,98.306,0.25]
[1644693493037,1.42601817,98.369,98.306,0.25]
[1644693493638,1.42601817,98.37,98.306,0.25]
[1644693493838,1.42601817,98.368,98.306,0.25]
[1644693494236,1.42601817,98.368,98.307,5.083]
[1644693495037,1.42601817,98.362,98.307,5.083]
[1644693495642,1.42601817,98.363,98.307,5.083]
[1644693495839,1.42601817,98.362,98.307,5.083]
[1644693496641,1.42601817,98.361,98.307,5.083]
[1644693497143,1.42601817,98.357,98.307,5.083]
[1644693497742,1.42601817,98.358,98.308,2.62390296]
[1644693497941,1.42601817,98.362,98.308,2.62390296]
[1644693498644,1.42601817,98.362,98.309,5.083]
[1644693498845,1.42601817,98.362,98.308,5.083]
[1644693499046,1.42601817,98.362,98.307,5.083]
[1644693499245,1.42601817,98.355,98.307,5.083]
[1644693501145,1.42601817,98.354,98.306,0.25]
[1644693501546,1.42601817,98.355,98.306,0.25]
[1644693501749,1.42601817,98.355,98.307,5.083]
[1644693502247,1.42601817,98.356,98.306,0.25]
[1644693502447,1.42601817,98.355,98.304,23.3733]
[1644693502649,1.42601817,98.355,98.294,0.024]
[1644693502650,1.42601817,98.348,98.294,0.024]
[1644693502871,1.42601817,98.348,98.281,0.024]
[1644693503051,1.42601817,98.332,98.272,0.024]
[1644693503250,1.42601817,98.32,98.252,0.024]
[1644693503451,35.19858291,98.323,98.253,41.4153902]
[1644693503651,1.42601817,98.319,98.254,5.087]
[1644693503852,1.42601817,98.316,98.254,5.337]
[1644693504559,1.42601817,98.315,98.254,5.337]
[1644693504762,1.42601817,98.317,98.254,5.337]
[1644693505160,1.42601817,98.318,98.254,5.337]
[1644693505360,1.42601817,98.321,98.254,5.337]
[1644693505564,1.42601817,98.321,98.255,2.62390296]
[1644693505762,1.42601817,98.338,98.26,15.2641]
[1644693505963,5.087,98.369,98.26,15.2641]
[1644693505964,1.42601817,98.342,98.261,5.086]
[1644693506161,1.42601817,98.342,98.261,7.73390296]
[1644693506360,35.55855407,98.349,98.262,25.39080296]
[1644693506361,1.42601817,98.346,98.262,25.39080296]
[1644693506562,1.42601817,98.346,98.263,0.024]
[1644693506760,1.42601817,98.346,98.263,2.64790296]
[1644693506960,1.42601817,98.346,98.28,15.2595]
[1644693507160,1.42601817,98.347,98.281,23.9738]
[1644693507363,1.42601817,98.349,98.282,101.6]
[1644693507560,1.42601817,98.349,98.283,5.085]
[1644693507961,1.42601817,98.349,98.282,101.6]
[1644693508161,1.42601817,98.349,98.283,5.085]
[1644693508361,1.42601817,98.349,98.284,43.06934072]
[1644693508662,48.12688717,98.35,98.284,43.06934072]
[1644693508860,1.42601817,98.349,98.29,15.2583]
[1644693509265,1.42601817,98.35,98.29,15.2583]
[1644693509465,2.85669215,98.377,98.292,101.6]
[1644693509466,1.42601817,98.349,98.292,101.6]
[1644693509665,1.42601817,98.355,98.294,101.6]
[1644693509868,1.42601817,98.356,98.294,101.6]
[1644693510068,1.42601817,98.356,98.295,5.083]
[1644693510266,1.42601817,98.357,98.295,5.083]
[1644693510477,1.42601817,98.358,98.295,5.083]
[1644693510877,1.42601817,98.358,98.3,15.2574]
[1644693511078,41.16846382,98.359,98.301,5.083]
[1644693511279,41.16846382,98.359,98.3,15.2574]
[1644693511677,42.59448199,98.359,98.3,15.2574]
[1644693512078,1.42601817,98.357,98.3,15.2574]
[1644693512979,1.42601817,98.355,98.3,15.2574]
[1644693513479,1.42601817,98.355,98.301,0.25]
[1644693513679,1.42601817,98.357,98.302,5.085]
[1644693514381,1.42601817,98.357,98.303,101.6]
[1644693514581,41.16846382,98.359,98.304,5.083]
[1644693514781,41.16846382,98.359,98.304,106.683]
[1644693514986,1.42601817,98.361,98.31,15.2565]
[1644693515184,1.42601817,98.361,98.311,24.5547]
[1644693515481,1.42601817,98.361,98.312,5.083]
[1644693515886,1.42601817,98.363,98.312,5.083]
[1644693516081,1.42601817,98.364,98.312,5.083]
[1644693516281,1.42601817,98.365,98.313,101.6]
[1644693516484,1.42601817,98.366,98.32,15.255]
[1644693516698,1.42601817,98.372,98.321,5.083]
[1644693516884,1.42601817,98.371,98.321,5.083]
[1644693517284,1.42601817,98.372,98.321,5.083]
[1644693517885,1.42601817,98.373,98.321,5.083]
[1644693519489,1.42601817,98.372,98.321,5.083]
[1644693519688,1.42601817,98.373,98.321,5.083]
[1644693519890,1.42601817,98.373,98.32,15.255]
[1644693520092,1.42601817,98.371,98.321,5.083]
[1644693520291,1.42601817,98.37,98.321,5.083]
[1644693520492,1.42601817,98.371,98.314,41.61226583]
[1644693520692,1.42601817,98.371,98.311,24.5547]
[1644693520990,1.42601817,98.361,98.311,24.5547]
[1644693521591,1.42601817,98.36,98.311,24.5547]
[1644693521795,1.42601817,98.362,98.311,24.5547]
[1644693522390,1.42601817,98.363,98.311,24.5547]
[1644693522594,1.42601817,98.363,98.312,5.083]
[1644693522999,1.42601817,98.362,98.312,5.083]
[1644693524199,1.389772,98.363,98.312,5.083]
[1644693524400,24.4669,98.374,98.312,5.083]
[1644693527501,24.4669,98.374,98.312,14.543]
[1644693529305,24.4669,98.374,98.312,5.083]
[1644693531606,5.083,98.373,98.312,5.083]
[1644693531808,24.4669,98.374,98.312,5.083]
[1644693532009,5.083,98.373,98.312,5.083]
[1644693533610,39.8646,98.374,98.312,5.083]
[1644693534411,24.4669,98.374,98.312,5.083]
[1644693534812,24.4669,98.374,98.311,24.5547]
[1644693535014,5.083,98.373,98.311,24.5547]
[1644693535214,4.71091545,98.372,98.311,24.5547]
[1644693535413,5.083,98.371,98.311,24.5547]
[1644693535815,4.71091545,98.37,98.283,5.107]
[1644693536013,5.085,98.369,98.284,0.024]
[1644693536214,5.085,98.369,98.28,0.024]
[1644693536215,2.85669215,98.36,98.28,0.024]
[1644693536415,7.94169215,98.359,98.272,28.8973]
[1644693536634,2.85669215,98.357,98.272,28.8973]
[1644693536836,2.85669215,98.356,98.273,45.72517516]
[1644693537036,7.94169215,98.356,98.274,0.024]
[1644693537236,4.71091545,98.355,98.274,0.274]
[1644693537435,5.085,98.355,98.274,0.25]
[1644693537638,4.71091545,98.354,98.275,0.024]
[1644693537838,5.085,98.354,98.275,0.024]
[1644693538037,4.71091545,98.353,98.275,0.024]
[1644693538236,5.085,98.352,98.275,0.024]
[1644693538435,4.71091545,98.351,98.275,0.024]
[1644693538637,4.71091545,98.351,98.273,0.024]
[1644693538838,5.085,98.35,98.276,0.024]
[1644693539035,5.085,98.35,98.272,23.7883]
[1644693539036,5.085,98.35,98.273,5.109]
[1644693539238,4.71091545,98.349,98.275,5.109]